bitfinex/quotes_SOLUSD_20241209
["timestamp","ask_amount","ask_price","bid_price","bid_amount"]
[1733706630454,1.585,234.83,234.64,13.06948042]
[1733706630455,23.776884,234.7,234.64,13.06948042]
[1733706630653,6.5496,234.77,234.69,13.06948042]
[1733706630888,23.776884,234.76,234.71,13.06948042]
[1733706631379,23.776884,234.77,234.71,13.06948042]
[1733706631593,9.1644,234.83,234.72,13.06948042]
[1733706631594,13.06948042,234.8,234.72,13.06948042]
[1733706631887,13.06948042,234.81,234.74,13.06948042]
[1733706632061,13.06948042,234.82,234.75,13.06948042]
[1733706632873,23.776884,234.81,234.75,13.06948042]
[1733706633076,36.84636442,234.81,234.74,13.06948042]
[1733706633380,32.14167903,234.81,234.74,8.36479503]
[1733706633765,32.14167903,234.79,234.72,8.36479503]
[1733706633957,23.776884,234.76,234.7,8.36479503]
[1733706634187,23.776884,234.79,234.73,8.36479503]
[1733706634697,32.14167903,234.79,234.72,8.36479503]
[1733706635289,36.84916552,234.79,234.72,13.07228152]
[1733706635860,23.776884,234.77,234.71,13.07228152]
[1733706636060,36.84916552,234.77,234.69,13.07228152]
[1733706636270,23.776884,234.72,234.66,13.29198242]
[1733706636491,23.776884,234.72,234.65,13.07228152]
[1733706636492,23.776884,234.71,234.65,13.07228152]
[1733706636998,23.776884,234.68,234.63,13.07228152]
[1733706637359,23.776884,234.68,234.62,13.07228152]
[1733706637865,36.84916552,234.66,234.59,26.36426394]
[1733706638064,36.84916552,234.66,234.59,13.07228152]
[1733706638310,36.84916552,234.66,234.58,13.29198242]
[1733706638311,23.776884,234.64,234.58,26.36426394]
[1733706638497,36.84916552,234.64,234.58,26.36426394]
[1733706638701,36.84916552,234.64,234.58,13.07228152]
[1733706639628,23.776884,234.65,234.59,13.07228152]
[1733706640207,23.776884,234.66,234.61,13.07228152]
[1733706640380,23.776884,234.66,234.6,13.07228152]
[1733706641480,36.84916552,234.66,234.59,13.07228152]
[1733706641980,13.07228152,234.61,234.57,13.29198242]
[1733706642200,23.776884,234.6,234.56,13.29198242]
[1733706642789,36.84916552,234.6,234.56,13.29198242]
[1733706642986,36.84916552,234.6,234.53,13.07228152]
[1733706644306,13.07228152,234.56,234.49,13.07228152]
[1733706644518,23.776884,234.55,234.49,13.07228152]
[1733706644984,36.84916552,234.55,234.48,13.07228152]
[1733706645193,13.07228152,234.54,234.47,13.07228152]
[1733706645512,13.07228152,234.5,234.43,13.07228152]
[1733706645843,23.776884,234.53,234.41,13.07228152]
[1733706645844,23.776884,234.47,234.41,13.07228152]
[1733706646137,36.84916552,234.47,234.4,13.55702242]
[1733706646292,13.07228152,234.45,234.4,0.4847409]
[1733706646493,23.776884,234.44,234.4,0.4847409]
[1733706647529,23.776884,234.45,234.4,0.4847409]
[1733706647824,23.776884,234.48,234.42,13.07228152]
[1733706648325,23.776884,234.48,234.43,13.07228152]
[1733706648533,23.776884,234.5,234.46,13.07228152]
[1733706648700,23.776884,234.52,234.46,13.07228152]
[1733706649396,13.07228152,234.55,234.48,13.07228152]
[1733706649628,13.07228152,234.57,234.49,13.07228152]
[1733706651027,13.07228152,234.58,234.51,13.07228152]
[1733706651334,1.6361,234.6,234.49,13.07228152]
[1733706651335,13.07228152,234.56,234.49,13.07228152]
[1733706652111,1.6361,234.6,234.44,17.3222]
[1733706652112,13.07228152,234.51,234.44,6.6589]
[1733706652317,36.84916552,234.48,234.41,13.07228152]
[1733706652511,13.07228152,234.5,234.43,13.07228152]
[1733706652716,23.776884,234.51,234.45,13.07228152]
[1733706653206,36.84916552,234.51,234.44,13.07228152]
[1733706654114,23.776884,234.49,234.43,13.07228152]
[1733706654316,23.776884,234.49,234.42,13.07228152]
[1733706654538,36.84916552,234.49,234.42,13.07228152]
[1733706654838,36.84916552,234.47,234.4,15.07742242]
[1733706655040,23.776884,234.46,234.4,0.4847409]
[1733706655222,23.776884,234.46,234.41,13.07228152]
[1733706655631,23.776884,234.46,234.4,0.4847409]
[1733706655632,23.776884,234.45,234.4,0.4847409]
[1733706655931,23.776884,234.45,234.41,13.07228152]
[1733706656121,23.776884,234.47,234.41,13.07228152]
[1733706657310,23.776884,234.49,234.42,13.07228152]
[1733706658148,23.776884,234.49,234.43,13.07228152]
[1733706658844,23.776884,234.5,234.44,13.07228152]
[1733706659214,23.776884,234.51,234.45,13.07228152]
[1733706659634,13.07228152,234.52,234.45,13.07228152]
[1733706660009,13.07228152,234.51,234.44,13.07228152]
[1733706660722,1.6361,234.6,234.48,13.07228152]
[1733706660932,13.07228152,234.59,234.52,13.07228152]
[1733706661144,13.07228152,234.6,234.53,13.07228152]
[1733706661345,1.6189,234.65,234.53,13.07228152]
[1733706661346,13.07228152,234.61,234.53,13.07228152]
[1733706661517,1.6189,234.65,234.44,20.63958461]
[1733706661917,13.07228152,234.58,234.51,13.07228152]
[1733706662152,13.07228152,234.57,234.49,13.07228152]
[1733706662324,23.776884,234.54,234.48,13.07228152]
[1733706662950,23.776884,234.55,234.49,13.07228152]
[1733706663250,23.776884,234.55,234.45,10.6632]
[1733706663251,23.776884,234.58,234.53,13.07228152]
[1733706663550,23.776884,234.59,234.53,13.07228152]
[1733706663852,23.776884,234.6,234.53,13.07228152]
[1733706664019,13.07228152,234.58,234.51,13.07228152]
[1733706664220,36.84916552,234.56,234.49,13.07228152]
[1733706664446,23.776884,234.56,234.5,13.07228152]
[1733706664661,23.776884,234.57,234.51,13.07228152]
[1733706664830,23.776884,234.57,234.52,13.07228152]
[1733706665029,23.776884,234.58,234.52,13.07228152]
[1733706665441,23.776884,234.58,234.54,13.07228152]
[1733706665642,36.84916552,234.6,234.53,13.07228152]
[1733706666363,13.07228152,234.61,234.54,13.07228152]
[1733706666655,1.6189,234.65,234.58,13.07228152]
[1733706666656,13.07228152,234.65,234.58,13.07228152]
[1733706667427,13.07228152,234.67,234.6,13.07228152]
[1733706668255,13.07228152,234.68,234.61,13.07228152]
[1733706668447,13.07228152,234.67,234.6,13.07228152]
[1733706668939,23.776884,234.66,234.6,13.07228152]
[1733706670230,23.776884,234.66,234.54,2.20715714]
[1733706670231,23.776884,234.66,234.61,13.07228152]
[1733706670439,7.6999,234.75,234.58,10.6571]
[1733706670440,13.07228152,234.7,234.63,13.07228152]
[1733706670848,13.07228152,234.69,234.62,13.07228152]
[1733706671558,7.6999,234.75,234.59,13.07228152]
[1733706671559,23.776884,234.65,234.59,13.07228152]
[1733706672232,23.776884,234.65,234.6,13.07228152]
[1733706672434,23.776884,234.66,234.6,13.07228152]
[1733706673134,23.776884,234.67,234.61,13.07228152]
[1733706673331,23.776884,234.68,234.63,13.07228152]
[1733706673556,13.07228152,234.71,234.64,13.07228152]
[1733706673937,13.07228152,234.7,234.63,13.07228152]
[1733706674133,13.07228152,234.69,234.62,13.07228152]
[1733706674763,13.07228152,234.7,234.63,13.07228152]
[1733706674935,23.776884,234.69,234.63,13.07228152]
[1733706675259,23.776884,234.69,234.64,13.07228152]
[1733706675467,23.776884,234.74,234.67,13.07228152]
[1733706675645,36.84916552,234.74,234.67,13.07228152]
[1733706676259,23.776884,234.72,234.66,13.07228152]
[1733706676572,23.776884,234.7,234.62,10.6552]
[1733706676743,23.776884,234.7,234.65,13.07228152]
[1733706676949,23.776884,234.73,234.68,13.07228152]
[1733706677169,13.07228152,234.75,234.68,13.07228152]
[1733706677949,13.07228152,234.77,234.7,13.07228152]
[1733706678658,13.07228152,234.78,234.71,13.07228152]
[1733706679049,23.776884,234.78,234.71,13.07228152]
[1733706680369,23.776884,234.78,234.72,13.07228152]
[1733706680574,23.776884,234.79,234.73,13.07228152]
[1733706680756,23.776884,234.79,234.68,10.6525]
[1733706680757,13.07228152,234.82,234.75,13.07228152]
[1733706681070,13.07228152,234.82,234.74,13.07228152]
[1733706681457,13.07228152,234.81,234.73,13.07228152]
[1733706681773,13.07228152,234.76,234.69,13.07228152]
[1733706682086,23.776884,234.75,234.69,13.07228152]
[1733706682665,23.776884,234.75,234.68,13.07228152]
[1733706682844,23.776884,234.75,234.69,13.07228152]
[1733706683367,23.776884,234.75,234.7,13.07228152]
[1733706683571,13.07228152,234.78,234.71,13.07228152]
[1733706683897,13.07228152,234.78,234.67,10.653]
[1733706683898,23.776884,234.8,234.73,13.07228152]
[1733706684064,23.776884,234.8,234.74,13.07228152]
[1733706684260,1.6335,234.87,234.77,13.07228152]
[1733706684261,13.07228152,234.84,234.77,13.07228152]
[1733706685510,13.07228152,234.83,234.76,13.07228152]
[1733706685865,23.776884,234.82,234.76,13.07228152]
[1733706686063,23.776884,234.82,234.77,13.07228152]
[1733706686501,23.776884,234.83,234.77,13.07228152]
[1733706686994,36.84916552,234.83,234.76,13.07228152]
[1733706687159,13.07228152,234.8,234.73,13.07228152]
[1733706687367,23.776884,234.79,234.73,13.07228152]
[1733706687695,23.776884,234.8,234.76,13.07228152]
[1733706688001,23.776884,234.84,234.78,13.07228152]
[1733706688895,13.07228152,234.85,234.78,13.07228152]
[1733706689062,13.07228152,234.85,234.71,16.9271]
[1733706689063,13.07228152,234.81,234.74,13.07228152]
[1733706689267,13.07228152,234.8,234.73,13.07228152]
[1733706690287,13.07228152,234.84,234.77,13.07228152]
[1733706690794,13.07228152,234.83,234.76,13.07228152]
[1733706691379,13.07228152,234.82,234.75,13.07228152]
[1733706691578,1.0642,234.9,234.73,13.07228152]
[1733706691579,13.07228152,234.8,234.73,13.07228152]
[1733706692109,13.07228152,234.81,234.74,13.07228152]
[1733706692280,13.07228152,234.82,234.75,13.07228152]
[1733706693693,13.07228152,234.81,234.74,13.07228152]
[1733706694811,23.776884,234.89,234.71,13.07228152]
[1733706694812,13.07228152,234.78,234.71,13.07228152]
[1733706694988,13.07228152,234.77,234.7,14.64468152]
[1733706696008,13.07228152,234.77,234.69,33.07228152]
[1733706696519,6.285,234.82,234.72,13.07228152]
[1733706696520,13.07228152,234.79,234.72,13.07228152]
[1733706697292,13.07228152,234.79,234.71,13.07228152]
[1733706697523,13.07228152,234.78,234.71,13.07228152]
[1733706697903,13.07228152,234.78,234.7,13.07228152]
[1733706698315,13.07228152,234.75,234.67,13.07228152]
[1733706698491,13.07228152,234.74,234.67,13.07228152]
[1733706699017,13.07228152,234.75,234.68,13.07228152]
[1733706699445,20.0,234.79,234.66,13.07228152]
[1733706699446,13.07228152,234.73,234.66,13.07228152]
[1733706700228,13.07228152,234.72,234.65,13.07228152]
[1733706700931,13.07228152,234.73,234.66,13.07228152]
[1733706701087,13.07228152,234.76,234.69,13.07228152]
[1733706701731,13.07228152,234.75,234.68,13.07228152]
[1733706701887,13.07228152,234.72,234.65,13.07228152]
[1733706702623,13.07228152,234.71,234.64,13.07228152]
[1733706702923,13.07228152,234.69,234.63,13.07228152]
[1733706703108,13.07228152,234.69,234.62,13.07228152]
[1733706703423,13.07228152,234.68,234.61,13.07228152]
[1733706704604,13.07228152,234.67,234.6,13.07228152]
[1733706704788,13.07228152,234.63,234.56,13.07228152]
[1733706704988,13.07228152,234.62,234.55,13.07228152]
[1733706705195,13.07228152,234.61,234.54,13.07228152]
[1733706705396,36.84916552,234.62,234.55,13.07228152]
[1733706706705,13.07228152,234.66,234.58,13.07228152]
[1733706706899,14.61928152,234.68,234.61,13.07228152]
[1733706707302,13.07228152,234.67,234.6,13.07228152]
[1733706707707,13.07228152,234.66,234.59,13.07228152]
[1733706708410,13.07228152,234.65,234.58,13.07228152]
[1733706709395,13.07228152,234.62,234.55,13.07228152]
[1733706710598,1.547,234.68,234.54,13.07228152]
[1733706710822,1.547,234.68,234.52,1.6093]
[1733706710823,13.07228152,234.59,234.52,13.07228152]
[1733706711129,13.07228152,234.59,234.51,13.07228152]
[1733706711423,23.776884,234.61,234.49,13.07228152]
[1733706711424,13.07228152,234.56,234.49,13.07228152]
[1733706712532,13.07228152,234.55,234.48,13.07228152]
[1733706713295,13.07228152,234.53,234.46,13.07228152]
[1733706713500,13.07228152,234.52,234.45,13.07228152]
[1733706714199,1.6245,234.58,234.4,0.4847409]
[1733706714200,13.07228152,234.51,234.44,13.07228152]
[1733706714399,13.07228152,234.5,234.43,13.07228152]
[1733706715238,13.07228152,234.5,234.42,13.07228152]
[1733706715744,36.84916552,234.49,234.42,13.07228152]
[1733706716103,36.84916552,234.49,234.4,0.4847409]
[1733706716104,13.07228152,234.47,234.4,0.4847409]
[1733706716343,13.07228152,234.47,234.4,13.55702242]
[1733706717033,23.776884,234.49,234.4,0.4847409]
[1733706717034,13.07228152,234.46,234.4,0.4847409]
[1733706717752,13.07228152,234.48,234.41,13.07228152]
[1733706718708,13.07228152,234.49,234.42,13.07228152]
[1733706718906,13.07228152,234.52,234.45,13.07228152]
[1733706719338,13.07228152,234.51,234.44,13.07228152]
[1733706719526,36.84916552,234.49,234.42,13.07228152]
[1733706719842,13.07228152,234.48,234.41,13.07228152]
[1733706720631,36.84916552,234.49,234.42,13.07228152]
[1733706721139,13.07228152,234.52,234.45,13.07228152]
[1733706721438,6.1298,234.57,234.48,13.07228152]
[1733706721439,13.07228152,234.55,234.48,13.07228152]
[1733706721640,14.69678152,234.58,234.51,13.07228152]
[1733706721938,14.69678152,234.58,234.52,13.07228152]
[1733706721939,1.6245,234.58,234.52,13.07228152]
[1733706722247,13.07228152,234.63,234.56,13.07228152]
[1733706723240,13.07228152,234.62,234.55,13.07228152]
[1733706725631,1.6098,234.64,234.52,13.07228152]
[1733706725632,13.07228152,234.59,234.52,13.07228152]
[1733706726804,1.6098,234.64,234.5,13.07228152]
[1733706726805,13.07228152,234.57,234.5,13.07228152]
[1733706727008,23.776884,234.58,234.48,13.07228152]
[1733706727009,13.07228152,234.55,234.48,13.07228152]
[1733706727439,13.07228152,234.57,234.5,13.07228152]
[1733706727640,36.84916552,234.58,234.51,13.07228152]
[1733706729049,13.07228152,234.6,234.53,13.07228152]
[1733706729216,23.776884,234.6,234.54,13.07228152]
[1733706729832,13.07228152,234.63,234.56,13.07228152]
[1733706730743,13.07228152,234.59,234.52,13.07228152]
[1733706730913,13.07228152,234.59,234.47,10.6623]
[1733706730914,13.07228152,234.59,234.53,13.07228152]
[1733706731343,13.07228152,234.61,234.54,13.07228152]
[1733706732649,13.07228152,234.62,234.55,13.07228152]
[1733706734233,13.07228152,234.58,234.51,13.07228152]
[1733706735240,13.07228152,234.54,234.48,13.07228152]
[1733706735448,13.07228152,234.56,234.49,13.07228152]
[1733706736156,13.07228152,234.58,234.51,13.07228152]
[1733706736348,23.776884,234.57,234.51,13.07228152]
[1733706737438,23.776884,234.57,234.5,13.07228152]
[1733706737439,36.84916552,234.57,234.5,13.07228152]
[1733706737653,13.07228152,234.54,234.47,13.07228152]
[1733706737852,13.07228152,234.53,234.47,13.07228152]
[1733706738070,23.776884,234.59,234.44,1.6255]
[1733706738071,13.07228152,234.51,234.45,13.07228152]
[1733706738238,13.07228152,234.49,234.42,13.07228152]
[1733706739461,13.07228152,234.47,234.4,13.55702242]
[1733706740056,13.07228152,234.46,234.4,0.4847409]
[1733706740749,13.07228152,234.49,234.42,13.07228152]
[1733706741253,13.07228152,234.5,234.43,13.07228152]
[1733706741970,13.07228152,234.49,234.42,13.07228152]
[1733706743433,13.07228152,234.46,234.4,0.4847409]
[1733706743633,36.84916552,234.48,234.4,13.55702242]
[1733706743943,36.84916552,234.48,234.41,13.07228152]
[1733706744155,13.07228152,234.5,234.44,13.07228152]
[1733706744357,23.776884,234.5,234.44,13.07228152]
[1733706745644,36.84916552,234.5,234.44,13.07228152]
[1733706746047,13.07228152,234.49,234.42,13.07228152]
[1733706749875,13.07228152,234.52,234.45,13.07228152]
[1733706751481,6.188,234.57,234.46,13.07228152]
[1733706751682,6.188,234.57,234.42,1.627]
[1733706751683,13.07228152,234.56,234.49,13.07228152]
[1733706752046,13.07228152,234.54,234.48,13.07228152]
[1733706752380,13.07228152,234.53,234.46,13.07228152]
[1733706753468,23.776884,234.49,234.4,0.4847409]
[1733706753685,23.776884,234.49,234.42,13.07228152]
[1733706753686,36.84916552,234.49,234.42,13.07228152]
[1733706754581,13.07228152,234.47,234.4,13.55702242]
[1733706755875,13.07228152,234.47,234.4,0.4847409]
[1733706756176,13.07228152,234.47,234.4,13.55702242]
[1733706756753,13.07228152,234.46,234.4,0.4847409]
[1733706756954,13.07228152,234.47,234.4,13.55702242]
[1733706757150,36.84916552,234.46,234.4,0.4847409]
[1733706757384,13.07228152,234.44,234.4,0.4847409]
[1733706757957,13.07228152,234.43,234.4,0.4847409]
[1733706758153,23.776884,234.42,234.4,0.4847409]
[1733706758348,36.84916552,234.41,234.4,0.4847409]
[1733706758783,38.49406552,234.41,234.4,0.4847409]
[1733706761171,13.07228152,234.41,234.4,0.4847409]
[1733706761883,13.07228152,234.44,234.4,0.4847409]
[1733706762061,13.07228152,234.45,234.4,0.4847409]
[1733706762255,13.07228152,234.46,234.4,0.4847409]
[1733706762459,13.07228152,234.47,234.4,13.55702242]
[1733706763302,13.07228152,234.48,234.41,13.07228152]
[1733706763594,13.07228152,234.49,234.42,13.07228152]
[1733706763883,6.1312,234.6,234.47,13.07228152]
[1733706764063,13.07228152,234.54,234.47,13.07228152]
[1733706764466,13.07228152,234.54,234.42,7.15272876]
[1733706764467,13.07228152,234.55,234.48,13.07228152]
[1733706765392,13.07228152,234.57,234.5,13.07228152]
[1733706765684,1.0655,234.63,234.49,13.07228152]
[1733706765685,13.07228152,234.56,234.49,13.07228152]
[1733706767500,13.07228152,234.58,234.51,13.07228152]
[1733706767799,36.84916552,234.57,234.5,13.07228152]
[1733706768169,36.84916552,234.57,234.44,0.639687]
[1733706768170,13.07228152,234.56,234.49,13.07228152]
[1733706769107,20.0,234.63,234.53,13.07228152]
[1733706769293,20.0,234.63,234.46,10.6625]
[1733706769493,20.0,234.63,234.43,1.5338]
[1733706769494,13.07228152,234.5,234.43,1.5338]
[1733706769724,20.0,234.57,234.42,19.58528152]
[1733706769886,13.07228152,234.5,234.43,13.07228152]
[1733706770218,13.07228152,234.52,234.45,13.07228152]
[1733706770368,13.07228152,234.53,234.46,13.07228152]
[1733706771205,13.07228152,234.52,234.45,13.07228152]
[1733706774411,13.07228152,234.51,234.44,13.07228152]
[1733706776681,13.07228152,234.49,234.42,19.58528152]
[1733706776889,13.07228152,234.48,234.42,19.58528152]
[1733706778513,13.07228152,234.47,234.42,6.513]
[1733706778885,13.07228152,234.48,234.42,19.58528152]
[1733706779414,13.07228152,234.49,234.42,19.58528152]
[1733706779584,13.07228152,234.52,234.46,13.07228152]
[1733706779784,13.07228152,234.52,234.45,13.07228152]
[1733706780011,20.0,234.57,234.44,13.07228152]
[1733706780012,13.07228152,234.51,234.44,13.07228152]
[1733706784296,20.0,234.57,234.43,13.07228152]
[1733706784297,13.07228152,234.49,234.43,13.07228152]
[1733706784706,13.07228152,234.5,234.44,13.07228152]
[1733706785023,13.07228152,234.51,234.44,13.07228152]
[1733706785606,13.07228152,234.53,234.47,13.07228152]
[1733706785893,23.776884,234.56,234.5,13.07228152]
[1733706786632,23.776884,234.56,234.48,13.07228152]
[1733706786633,13.07228152,234.55,234.48,13.07228152]
[1733706787196,36.84916552,234.56,234.49,13.07228152]
[1733706787705,13.07228152,234.56,234.49,13.07228152]
[1733706788108,1.0655,234.63,234.45,20.0]
[1733706788109,13.07228152,234.54,234.47,13.07228152]
[1733706788718,13.07228152,234.53,234.46,13.07228152]
[1733706788912,13.07228152,234.6,234.42,6.513]
[1733706788913,13.07228152,234.48,234.42,6.513]
[1733706789234,23.776884,234.51,234.4,13.55702242]
[1733706789235,13.07228152,234.47,234.4,13.55702242]
[1733706791621,13.07228152,234.48,234.41,13.07228152]
[1733706792307,13.07228152,234.47,234.4,13.55702242]
[1733706797732,13.07228152,234.42,234.4,0.4847409]
[1733706798021,13.07228152,234.48,234.4,0.4847409]
[1733706798022,13.07228152,234.41,234.4,0.4847409]
[1733706798840,13.07228152,234.48,234.4,13.55702242]
[1733706799046,13.07228152,234.48,234.41,13.07228152]
[1733706799417,13.07228152,234.47,234.4,13.55702242]
[1733706800712,13.07228152,234.46,234.4,0.4847409]
[1733706801239,13.07228152,234.44,234.4,0.4847409]
[1733706801446,13.07228152,234.43,234.4,0.4847409]
[1733706802920,13.07228152,234.5,234.42,13.07228152]
[1733706803141,13.07228152,234.51,234.44,13.07228152]
[1733706803645,13.07228152,234.52,234.44,13.07228152]
[1733706804957,13.07228152,234.51,234.43,13.07228152]
[1733706806361,13.07228152,234.51,234.44,13.07228152]
[1733706806565,19.17638152,234.6,234.47,13.07228152]
[1733706806566,13.07228152,234.54,234.47,13.07228152]
[1733706807479,13.07228152,234.5,234.4,24.44202332]
[1733706807663,13.07228152,234.49,234.42,13.07228152]
[1733706808233,13.07228152,234.49,234.43,13.07228152]
[1733706809265,13.07228152,234.49,234.42,13.07228152]
[1733706809647,13.07228152,234.49,234.43,13.07228152]
[1733706810436,13.07228152,234.46,234.4,0.4847409]
[1733706810637,13.07228152,234.45,234.4,0.4847409]
[1733706812983,13.07228152,234.43,234.4,0.4847409]
[1733706814982,13.07228152,234.46,234.4,13.55702242]
[1733706815185,13.07228152,234.48,234.41,13.07228152]
[1733706815960,13.07228152,234.47,234.4,13.55702242]
[1733706816261,23.776884,234.51,234.4,13.55702242]
[1733706816262,13.07228152,234.46,234.4,13.55702242]
[1733706817180,13.07228152,234.44,234.4,0.4847409]
[1733706818162,23.776884,234.51,234.4,0.4847409]
[1733706818163,13.07228152,234.43,234.4,0.4847409]
[1733706818361,13.07228152,234.42,234.4,0.4847409]
[1733706821257,13.07228152,234.41,234.4,0.4847409]
[1733706821676,16.6065,234.5,234.4,0.4847409]
[1733706821677,13.07228152,234.44,234.4,0.4847409]
[1733706821876,13.07228152,234.45,234.4,0.4847409]
[1733706825057,7.3488,234.57,234.44,13.07228152]
[1733706825258,13.07228152,234.52,234.45,13.07228152]
[1733706825692,13.07228152,234.54,234.47,13.07228152]
[1733706826057,13.07228152,234.54,234.48,13.07228152]
[1733706826468,13.07228152,234.54,234.47,13.07228152]
[1733706826684,13.07228152,234.55,234.49,13.07228152]
[1733706826863,13.07228152,234.55,234.43,13.93167147]
[1733706826864,13.07228152,234.55,234.48,13.07228152]
[1733706827063,13.07228152,234.55,234.49,13.07228152]
[1733706829192,13.07228152,234.55,234.48,13.07228152]
[1733706829395,13.07228152,234.52,234.45,13.07228152]
[1733706829786,13.07228152,234.52,234.46,13.07228152]
[1733706831891,13.07228152,234.53,234.46,13.07228152]
[1733706832203,13.07228152,234.54,234.47,13.07228152]
[1733706832404,13.07228152,234.55,234.48,13.07228152]
[1733706833507,13.07228152,234.59,234.53,13.07228152]
[1733706833696,1.0653,234.66,234.53,13.07228152]
[1733706833697,13.07228152,234.6,234.53,13.07228152]
[1733706834607,13.07228152,234.58,234.52,13.07228152]
[1733706834777,13.07228152,234.56,234.5,0.02]
[1733706834979,23.776884,234.62,234.5,0.02]
[1733706834980,13.07228152,234.55,234.5,0.02]
[1733706835178,13.07228152,234.54,234.5,0.02]
[1733706838109,13.07228152,234.53,234.5,0.02]
[1733706838490,13.07228152,234.52,234.5,0.02]
[1733706839307,14.13788152,234.6,234.5,0.02]
[1733706839308,13.07228152,234.53,234.5,0.02]
[1733706841076,23.776884,234.62,234.5,0.02]
[1733706841077,13.07228152,234.56,234.5,0.02]
[1733706842379,13.07228152,234.58,234.5,13.09228152]
[1733706843475,1.5425,234.63,234.5,13.09228152]
[1733706843476,13.07228152,234.57,234.5,13.09228152]
[1733706843909,13.07228152,234.56,234.5,0.02]
[1733706844301,13.07228152,234.54,234.5,0.02]
[1733706844858,13.07228152,234.56,234.5,0.02]
[1733706845715,13.07228152,234.55,234.5,0.02]
[1733706848290,13.07228152,234.54,234.5,0.02]
[1733706848497,13.07228152,234.6,234.5,0.02]
[1733706848498,13.07228152,234.53,234.5,0.02]
[1733706848892,13.07228152,234.54,234.5,0.02]
[1733706849303,8.38401384,234.52,234.5,0.02]
[1733706850296,8.38401384,234.51,234.5,0.02]
[1733706851615,8.38401384,234.52,234.5,0.02]
[1733706852000,8.38401384,234.51,234.5,0.02]
[1733706852726,32.16089784,234.51,234.5,0.02]
[1733706855231,36.88705681,234.51,234.5,0.02]
[1733706860026,49.99722962,234.51,234.5,0.02]
[1733706861835,49.99722962,234.51,234.4,0.4847409]
[1733706861836,20.0,234.48,234.4,0.4847409]
[1733706862010,36.88705681,234.41,234.4,0.4847409]
[1733706865333,20.0,234.38,234.29,1.5331]
[1733706865526,13.11017281,234.31,234.29,1.5331]
[1733706866145,13.11017281,234.3,234.24,8.2691]
[1733706866438,13.11017281,234.29,234.24,8.2691]
[1733706867028,13.11017281,234.27,234.24,8.2691]
[1733706867907,13.11017281,234.26,234.19,13.11017281]
[1733706868447,23.776884,234.28,234.22,13.11017281]
[1733706868812,36.88705681,234.28,234.21,13.11017281]
[1733706869144,36.88705681,234.28,234.22,13.11017281]
[1733706869509,13.11017281,234.32,234.25,13.11017281]
[1733706869843,23.776884,234.31,234.25,13.11017281]
[1733706871003,13.11017281,234.32,234.25,13.11017281]
[1733706871213,13.11017281,234.36,234.29,13.11017281]
[1733706872412,2.5892,234.48,234.34,13.11017281]
[1733706872640,13.11017281,234.4,234.34,13.11017281]
[1733706872843,13.11017281,234.41,234.34,13.11017281]
[1733706873021,13.11017281,234.44,234.37,13.11017281]
[1733706873336,13.11017281,234.45,234.38,13.11017281]
[1733706874444,13.11017281,234.44,234.37,13.11017281]
[1733706874652,13.11017281,234.43,234.36,13.11017281]
[1733706876744,13.11017281,234.4,234.33,13.11017281]
[1733706877259,12.61017281,234.4,234.33,13.11017281]
[1733706881258,12.11017281,234.4,234.33,13.11017281]
[1733706881449,13.11017281,234.4,234.33,13.11017281]
[1733706882082,13.11017281,234.42,234.35,13.11017281]
[1733706883166,8.39258869,234.42,234.35,8.39258869]
[1733706883368,8.39258869,234.41,234.34,8.39258869]
[1733706883570,8.39258869,234.42,234.35,8.39258869]
[1733706883778,23.776884,234.47,234.37,8.39258869]
[1733706883984,8.39258869,234.45,234.38,10.05348869]
[1733706885480,14.633173,234.54,234.41,8.39258869]
[1733706885786,8.39258869,234.49,234.42,8.39258869]
[1733706886085,8.39258869,234.5,234.43,8.39258869]
[1733706886776,8.39258869,234.49,234.42,8.39258869]
[1733706887091,8.39258869,234.48,234.41,8.39258869]
[1733706887291,8.39258869,234.49,234.42,8.39258869]
[1733706887788,8.39258869,234.5,234.43,8.39258869]
[1733706889256,8.39258869,234.51,234.44,8.39258869]
[1733706889762,1.0658,234.57,234.41,0.63970736]
[1733706889763,8.39258869,234.53,234.46,8.39258869]
[1733706890091,8.39258869,234.53,234.47,8.0505]
[1733706890892,8.39258869,234.5,234.47,8.0505]
[1733706891189,8.39258869,234.51,234.47,8.0505]
[1733706891896,8.39258869,234.52,234.47,8.0505]
[1733706895010,8.39258869,234.49,234.42,9.93198869]
[1733706895173,8.39258869,234.48,234.42,1.5394]
[1733706895373,23.776884,234.56,234.42,1.5394]
[1733706895374,8.39258869,234.47,234.42,1.5394]
[1733706895610,23.776884,234.56,234.42,1.5394]
[1733706895611,8.39258869,234.44,234.42,1.5394]
[1733706895977,8.39258869,234.45,234.38,8.39258869]
[1733706896185,8.39258869,234.47,234.4,8.39258869]
[1733706896510,23.776884,234.54,234.41,8.39258869]
[1733706896511,8.39258869,234.48,234.41,8.39258869]
[1733706896679,23.776884,234.54,234.4,8.39258869]